fUST/lending_fUST_20250907
["ID","MTS","AMOUNT","RATE_DAILY","PERIOD"]
[383943343,1757188252133,-1500.0,0.00016338,2]
[383943344,1757188252143,-1500.0,0.00016338,2]
[383943345,1757188252152,-260.0,0.00016348,2]
[383943346,1757188252161,-643.22980909,0.00016438,2]
[383943347,1757188252171,-480.0,0.00016438,2]
[383943348,1757188252180,-500.0,0.00016438,2]
[383943349,1757188252190,-500.0,0.00016438,2]
[383943350,1757188252199,-500.0,0.00016438,2]
[383943351,1757188252211,-503.09902669,0.00016438,2]
[383943352,1757188252220,-480.0,0.00016438,2]
[383943353,1757188252230,-480.0,0.00016438,2]
[383943354,1757188252239,-751.25,0.00016438,2]
[383943355,1757188252248,-480.0,0.00016438,2]
[383943356,1757188252258,-480.0,0.00016438,2]
[383943357,1757188252268,-479.09187132,0.00016438,2]
[383943358,1757188252277,-480.0,0.00016438,2]
[383943359,1757188252287,-480.0,0.00016438,2]
[383943360,1757188252296,-505.83,0.00016438,2]
[383943361,1757188252306,-556.38,0.00016438,2]
[383943362,1757188252315,-566.54,0.00016438,2]
[383943363,1757188252324,-481.35,0.00016438,2]
[383943364,1757188252334,-480.0,0.00016438,2]
[383943365,1757188252344,-480.0,0.00016438,2]
[383943366,1757188252353,-529.67,0.00016438,2]
[383943367,1757188252363,-509.94,0.00016438,2]
[383943368,1757188252373,-463.60370883,0.00016438,2]
[383943369,1757188252383,-480.0,0.00016438,2]
[383943370,1757188252393,-480.0,0.00016438,2]
[383943371,1757188252403,-480.0,0.00016438,2]
[383943372,1757188252413,-705.55,0.00016438,2]
[383943373,1757188252422,-480.0,0.00016438,2]
[383943374,1757188252432,-3041.38,0.00016438,2]
[383943375,1757188252441,-480.0,0.00016438,2]
[383943376,1757188252451,-7226.88,0.00016438,2]
[383943377,1757188252461,-553.89,0.00016438,2]
[383943378,1757188252471,-480.0,0.00016438,2]
[383943379,1757188252480,-594.3,0.00016438,2]
[383943380,1757188252490,-556.91,0.00016438,2]
[383943381,1757188252499,-480.0,0.00016438,2]
[383943382,1757188252509,-480.0,0.00016438,2]
[383943383,1757188252520,-602.49,0.00016438,2]
[383943384,1757188252529,-480.0,0.00016438,2]
[383943385,1757188252538,-740.07,0.00016438,2]
[383943386,1757188252548,-1229.74,0.00016438,2]
[383943387,1757188252558,-1289.77,0.00016438,2]
[383943388,1757188252567,-480.0,0.00016438,2]
[383943389,1757188252577,-2872.85,0.00016438,2]
[383943390,1757188252586,-480.0,0.00016438,2]
[383943391,1757188252595,-597.95,0.00016438,2]
[383943392,1757188252605,-480.0,0.00016438,2]
[383943393,1757188252617,-480.0,0.00016438,2]
[383943394,1757188252627,-480.0,0.00016438,2]
[383943395,1757188252636,-1596.78,0.00016438,2]
[383943396,1757188252645,-5759.89,0.00016438,2]
[383943397,1757188252655,-2769.71,0.00016438,2]
[383943398,1757188252664,-480.0,0.00016438,2]
[383943399,1757188252673,-2038.35,0.00016438,2]
[383943400,1757188252684,-480.0,0.00016438,2]
[383943401,1757188252693,-1191.28,0.00016438,2]
[383943402,1757188252703,-480.0,0.00016438,2]
[383943403,1757188252713,-1777.18,0.00016438,2]
[383943404,1757188252723,-568.44,0.00016438,2]
[383943405,1757188252732,-806.04,0.00016438,2]
[383943406,1757188252742,-975.38,0.00016438,2]
[383943407,1757188252751,-480.0,0.00016438,2]
[383943408,1757188252760,-480.0,0.00016438,2]
[383943409,1757188252771,-480.0,0.00016438,2]
[383943410,1757188252780,-1149.06,0.00016438,2]
[383943411,1757188252790,-480.0,0.00016438,2]
[383943412,1757188252800,-480.0,0.00016438,2]
[383943413,1757188252809,-480.0,0.00016438,2]
[383943414,1757188252819,-480.0,0.00016438,2]
[383943415,1757188252829,-480.0,0.00016438,2]
[383943416,1757188252840,-539.15,0.00016438,2]
[383943417,1757188252850,-480.0,0.00016438,2]
[383943418,1757188252859,-480.0,0.00016438,2]
[383943419,1757188252872,-595.52,0.00016438,2]
[383943420,1757188252882,-1423.76,0.00016438,2]
[383943421,1757188252894,-733.19,0.00016438,2]
[383943422,1757188252904,-1509.09,0.00016438,2]
[383943423,1757188252913,-1413.15,0.00016438,2]
[383943424,1757188252923,-480.0,0.00016438,2]
[383943425,1757188252935,-1542.88,0.00016438,2]
[383943426,1757188253080,-480.0,0.00016438,2]
[383943427,1757188253090,-480.0,0.00016438,2]
[383943428,1757188253099,-480.0,0.00016438,2]
[383943429,1757188253109,-1635.19,0.00016438,2]
[383943430,1757188253119,-1024.43,0.00016438,2]
[383943431,1757188253128,-514.21,0.00016438,2]
[383943432,1757188253138,-776.49,0.00016438,2]
[383943433,1757188253147,-500.0,0.00016438,2]
[383943434,1757188253156,-1500.0,0.00016464,2]
[383943435,1757188253166,-2000.0,0.000167,2]
[383943436,1757188253178,-406.6689,0.000167,2]
[383943437,1757188253188,-500.0,0.0001671,2]
[383943438,1757188253197,-500.0,0.0001671,5]
[383943439,1757188253206,-500.0,0.0001671,2]
[383943440,1757188253215,-480.0,0.00016712,2]
[383943441,1757188253225,-480.0,0.00016712,2]
[383943442,1757188253234,-480.0,0.00016712,2]
[383943443,1757188253244,-751.25,0.00016712,2]
[383943444,1757188253254,-480.0,0.00016712,2]
[383943445,1757188253264,-480.0,0.00016712,2]
[383943446,1757188253273,-480.0,0.00016712,2]
[383943447,1757188253283,-208.6303659,0.00016712,2]
[383943448,1757188253293,-157.0,0.00016712,2]
[383943449,1757188253303,-505.83,0.00016712,2]
[383943450,1757188253313,-556.38,0.00016712,2]
[383943451,1757188253323,-566.54,0.00016712,2]
[383943452,1757188253334,-481.35,0.00016712,2]
[383943453,1757188253344,-480.0,0.00016712,2]
[383943454,1757188253353,-480.0,0.00016712,2]
[383943455,1757188253362,-529.67,0.00016712,2]
[383943456,1757188253372,-509.94,0.00016712,2]
[383943457,1757188253382,-480.0,0.00016712,2]
[383943458,1757188253392,-480.0,0.00016712,2]
[383943459,1757188253401,-480.0,0.00016712,2]
[383943460,1757188253412,-705.55,0.00016712,2]
[383943461,1757188253422,-480.0,0.00016712,2]
[383943462,1757188253432,-3041.38,0.00016712,2]
[383943463,1757188253441,-480.0,0.00016712,2]
[383943464,1757188253450,-7226.88,0.00016712,2]
[383943465,1757188253460,-553.89,0.00016712,2]
[383943466,1757188253474,-480.0,0.00016712,2]
[383943467,1757188253483,-594.3,0.00016712,2]
[383943468,1757188253493,-556.91,0.00016712,2]
[383943469,1757188253502,-480.0,0.00016712,2]
[383943470,1757188253512,-480.0,0.00016712,2]
[383943471,1757188253521,-602.49,0.00016712,2]
[383943472,1757188253531,-480.0,0.00016712,2]
[383943473,1757188253541,-740.07,0.00016712,2]
[383943474,1757188253552,-1229.74,0.00016712,2]
[383943475,1757188253562,-1289.77,0.00016712,2]
[383943476,1757188253572,-480.0,0.00016712,2]
[383943477,1757188253581,-2872.85,0.00016712,2]
[383943478,1757188253590,-480.0,0.00016712,2]
[383943479,1757188253603,-597.95,0.00016712,2]
[383943480,1757188253616,-480.0,0.00016712,2]
[383943481,1757188253627,-480.0,0.00016712,2]
[383943482,1757188253636,-480.0,0.00016712,2]
[383943483,1757188253646,-1596.78,0.00016712,2]
[383943484,1757188253655,-5759.89,0.00016712,2]
[383943485,1757188253666,-2769.71,0.00016712,2]
[383943486,1757188253676,-415.82289165,0.00016712,2]
[383943487,1757188253686,-2038.35,0.00016712,2]
[383943488,1757188253696,-480.0,0.00016712,2]
[383943489,1757188253707,-1191.28,0.00016712,2]
[383943490,1757188253717,-480.0,0.00016712,2]
[383943491,1757188253727,-1777.18,0.00016712,2]
[383943492,1757188253737,-568.44,0.00016712,2]
[383943493,1757188253748,-806.04,0.00016712,2]
[383943494,1757188253757,-975.38,0.00016712,2]
[383943495,1757188253767,-480.0,0.00016712,2]
[383943496,1757188253776,-480.0,0.00016712,2]
[383943497,1757188253786,-480.0,0.00016712,2]
[383943498,1757188253797,-500.0,0.00016712,2]
[383943499,1757188253807,-1149.06,0.00016712,2]
[383943500,1757188253816,-480.0,0.00016712,2]
[383943501,1757188253826,-176.58638603,0.00016712,2]
[383943502,1757188253836,-480.0,0.00016712,2]
[383943503,1757188253846,-480.0,0.00016712,2]
[383943504,1757188253856,-480.0,0.00016712,2]
[383943505,1757188253865,-539.15,0.00016712,2]
[383943506,1757188253876,-480.0,0.00016712,2]
[383943507,1757188253885,-480.0,0.00016712,2]
[383943508,1757188253895,-595.52,0.00016712,2]
[383943509,1757188253905,-1423.76,0.00016712,2]
[383943510,1757188253915,-1509.09,0.00016712,2]
[383943511,1757188253925,-1413.15,0.00016712,2]
[383943512,1757188253935,-480.0,0.00016712,2]
[383943513,1757188253944,-1542.88,0.00016712,2]
[383943514,1757188253953,-480.0,0.00016712,2]
[383943515,1757188253963,-480.0,0.00016712,2]
[383943516,1757188253973,-480.0,0.00016712,2]
[383943517,1757188253983,-1635.19,0.00016712,2]
[383943518,1757188253993,-514.21,0.00016712,2]
[383943519,1757188254003,-1024.43,0.00016712,2]
[383943520,1757188254014,-776.49,0.00016712,2]
[383943521,1757188254023,-2500.0,0.00016756,2]
[383943522,1757188254033,-3000.0,0.0001678,2]
[383943523,1757188254043,-500.0,0.00016809,2]
[383943524,1757188254052,-2000.0,0.00016871,2]
[383943525,1757188254062,-2000.0,0.00016873,2]
[383943526,1757188254072,-2000.0,0.00016873,2]
[383943527,1757188254082,-3786.47931423,0.0001688,2]
[383943528,1757188254091,-2000.0,0.00016886,2]
[383943529,1757188254101,-623.50704737,0.00016886,2]
[383943530,1757188254111,-2000.0,0.00016886,2]
[383943531,1757188254120,-2000.0,0.00016886,2]
[383943532,1757188254130,-360.0,0.00016896,2]
[383943533,1757188254139,-864.0,0.00016905,2]
[383943534,1757188254149,-250.0,0.00016958,2]
[383943535,1757188254158,-612.59618424,0.00016973,2]
[383943536,1757188254168,-500.0,0.00016973,2]
[383943537,1757188254178,-500.0,0.00016973,2]
[383943538,1757188254187,-500.0,0.00016973,2]
[383943539,1757188254197,-501.1398416,0.00016973,2]
[383943540,1757188254206,-500.0,0.00016973,2]
[383943541,1757188254216,-157.0,0.00016986,2]
[383943542,1757188254225,-500.0,0.00016986,2]
[383943543,1757188254235,-566.78370966,0.00016986,2]
[383943544,1757188254244,-480.0,0.00016986,2]
[383943545,1757188254255,-480.0,0.00016986,2]
[383943546,1757188254265,-751.25,0.00016986,2]
[383943547,1757188254274,-480.0,0.00016986,2]
[383943548,1757188254284,-480.0,0.00016986,2]
[383943549,1757188254294,-480.0,0.00016986,2]
[383943550,1757188254304,-505.83,0.00016986,2]
[383943551,1757188254313,-556.38,0.00016986,2]
[383943552,1757188254323,-566.54,0.00016986,2]
[383943553,1757188254332,-481.35,0.00016986,2]
[383943554,1757188254342,-578.31506634,0.00016986,2]
[383943555,1757188254351,-480.0,0.00016986,2]
[383943556,1757188254361,-529.67,0.00016986,2]
[383943557,1757188254370,-509.94,0.00016986,2]
[383943558,1757188254380,-480.0,0.00016986,2]
[383943559,1757188254390,-480.0,0.00016986,2]
[383943560,1757188254399,-480.0,0.00016986,2]
[383943561,1757188254408,-705.55,0.00016986,2]
[383943562,1757188254418,-480.0,0.00016986,2]
[383943563,1757188254427,-3041.38,0.00016986,2]
[383943564,1757188254437,-480.0,0.00016986,2]
[383943565,1757188254447,-7226.88,0.00016986,2]
[383943566,1757188254457,-553.89,0.00016986,2]
[383943567,1757188254466,-480.0,0.00016986,2]
[383943568,1757188254476,-594.3,0.00016986,2]
[383943569,1757188254486,-556.91,0.00016986,2]
[383943570,1757188254495,-480.0,0.00016986,2]
[383943571,1757188254506,-480.0,0.00016986,2]
[383943572,1757188254515,-602.49,0.00016986,2]
[383943573,1757188254525,-480.0,0.00016986,2]
[383943574,1757188254534,-740.07,0.00016986,2]
[383943575,1757188254544,-1229.74,0.00016986,2]
[383943576,1757188254554,-1289.77,0.00016986,2]
[383943577,1757188254563,-480.0,0.00016986,2]
[383943578,1757188254573,-2872.85,0.00016986,2]
[383943579,1757188254583,-406.18,0.00016986,2]
[383943580,1757188254593,-597.95,0.00016986,2]
[383943581,1757188254604,-480.0,0.00016986,2]
[383943582,1757188254618,-330.00770623,0.00016986,2]
[383943583,1757188254627,-248.95588218,0.00016986,2]
[383943584,1757188254637,-1596.78,0.00016986,2]
[383943585,1757188254648,-5759.89,0.00016986,2]
[383943586,1757188254658,-2769.71,0.00016986,2]
[383943587,1757188254667,-2038.35,0.00016986,2]
[383943588,1757188254677,-480.0,0.00016986,2]
[383943589,1757188254687,-1191.28,0.00016986,2]
[383943590,1757188254697,-363.02229171,0.00016986,2]
[383943591,1757188254707,-1777.18,0.00016986,2]
[383943592,1757188254717,-568.44,0.00016986,2]
[383943593,1757188254726,-806.04,0.00016986,2]
[383943594,1757188254735,-975.38,0.00016986,2]
[383943595,1757188254746,-480.0,0.00016986,2]
[383943596,1757188254756,-480.0,0.00016986,2]
[383943597,1757188254765,-480.0,0.00016986,2]
[383943598,1757188254775,-1149.06,0.00016986,2]
[383943599,1757188254785,-480.0,0.00016986,2]
[383943600,1757188254794,-480.0,0.00016986,2]
[383943601,1757188254804,-480.0,0.00016986,2]
[383943602,1757188254815,-190.24348779,0.00016986,2]
[383943603,1757188254826,-539.15,0.00016986,2]
[383943604,1757188254837,-480.0,0.00016986,2]
[383943605,1757188254847,-480.0,0.00016986,2]
[383943606,1757188254856,-595.52,0.00016986,2]
[383943607,1757188254866,-1423.76,0.00016986,2]
[383943608,1757188254876,-1509.09,0.00016986,2]
[383943609,1757188254887,-1413.15,0.00016986,2]
[383943610,1757188254897,-480.0,0.00016986,2]
[383943611,1757188254906,-1542.88,0.00016986,2]
[383943612,1757188254916,-480.0,0.00016986,2]
[383943613,1757188254925,-480.0,0.00016986,2]
[383943614,1757188254935,-259.70211916,0.00016986,2]
[383943615,1757188254944,-1635.19,0.00016986,2]
[383943616,1757188254954,-514.21,0.00016986,2]
[383943617,1757188254965,-1024.43,0.00016986,2]
[383943618,1757188254974,-776.49,0.00016986,2]
[383943619,1757188254984,-975.0,0.00016998,2]
[383943620,1757188254994,-745.602,0.00016998,2]
[383943621,1757188255004,-634.0,0.00016998,2]
[383943622,1757188255014,-100637.62355337,0.00017,2]
[383943623,1757188255023,-8911.95528658,0.00017,2]
[383943624,1757188255033,-2000.0,0.00017012,2]
[383943625,1757188255043,-342.2,0.000172,2]
[383943626,1757188255053,-186.0,0.0001726,2]
[383943627,1757188255062,-351.75053648,0.0001726,2]
[383943628,1757188255072,-480.0,0.0001726,2]
[383943629,1757188255081,-480.0,0.0001726,2]
[383943630,1757188255090,-751.25,0.0001726,2]
[383943631,1757188255099,-242.67553439,0.0001726,2]
[383943632,1757188255109,-480.0,0.0001726,2]
[383943633,1757188255121,-480.0,0.0001726,2]
[383943634,1757188255131,-505.83,0.0001726,2]
[383943635,1757188255141,-556.38,0.0001726,2]
[383943636,1757188255151,-566.54,0.0001726,2]
[383943637,1757188255160,-481.35,0.0001726,2]
[383943638,1757188255171,-480.0,0.0001726,2]
[383943639,1757188255181,-529.67,0.0001726,2]
[383943640,1757188255190,-509.94,0.0001726,2]
[383943641,1757188255200,-560.72813128,0.0001726,2]
[383943642,1757188255209,-480.0,0.0001726,2]
[383943643,1757188255219,-480.0,0.0001726,2]
[383943644,1757188255228,-705.55,0.0001726,2]
[383943645,1757188255238,-480.0,0.0001726,2]
[383943646,1757188255247,-3041.38,0.0001726,2]
[383943647,1757188255257,-480.0,0.0001726,2]
[383943648,1757188255267,-7226.88,0.0001726,2]
[383943649,1757188255276,-553.89,0.0001726,2]
[383943650,1757188255286,-480.0,0.0001726,2]
[383943651,1757188255297,-594.3,0.0001726,2]
[383943652,1757188255307,-556.91,0.0001726,2]
[383943653,1757188255316,-480.0,0.0001726,2]
[383943654,1757188255326,-480.0,0.0001726,2]
[383943655,1757188255335,-602.49,0.0001726,2]
[383943656,1757188255345,-480.0,0.0001726,2]
[383943657,1757188255354,-740.07,0.0001726,2]
[383943658,1757188255364,-1229.74,0.0001726,2]
[383943659,1757188255373,-1289.77,0.0001726,2]
[383943660,1757188255382,-172.7970397,0.0001726,2]
[383943661,1757188255392,-2872.85,0.0001726,2]
[383943662,1757188255402,-597.95,0.0001726,2]
[383943663,1757188255413,-480.0,0.0001726,2]
[383943664,1757188255422,-1596.78,0.0001726,2]
[383943665,1757188255432,-5759.89,0.0001726,2]
[383943666,1757188255443,-2769.71,0.0001726,2]
[383943667,1757188255453,-2038.35,0.0001726,2]
[383943668,1757188255464,-480.0,0.0001726,2]
[383943669,1757188255474,-1191.28,0.0001726,2]
[383943670,1757188255484,-1777.18,0.0001726,2]
[383943671,1757188255494,-568.44,0.0001726,2]
[383943672,1757188255504,-806.04,0.0001726,2]
[383943673,1757188255516,-975.38,0.0001726,2]
[383943674,1757188255526,-480.0,0.0001726,2]
[383943675,1757188255536,-480.0,0.0001726,2]
[383943676,1757188255546,-480.0,0.0001726,2]
[383943677,1757188255556,-1149.06,0.0001726,2]
[383943678,1757188255566,-202.07270545,0.0001726,2]
[383943679,1757188255575,-480.0,0.0001726,2]
[383943680,1757188255585,-480.0,0.0001726,2]
[383943681,1757188255594,-539.15,0.0001726,2]
[383943682,1757188255608,-480.0,0.0001726,2]
[383943683,1757188255618,-480.0,0.0001726,2]
[383943684,1757188255628,-595.52,0.0001726,2]
[383943685,1757188255637,-1423.76,0.0001726,2]
[383943686,1757188255648,-1509.09,0.0001726,2]
[383943687,1757188255658,-1413.15,0.0001726,2]
[383943688,1757188255667,-480.0,0.0001726,2]
[383943689,1757188255677,-1542.88,0.0001726,2]
[383943690,1757188255686,-480.0,0.0001726,2]
[383943691,1757188255695,-480.0,0.0001726,2]
[383943692,1757188255705,-1635.19,0.0001726,2]
[383943693,1757188255714,-514.21,0.0001726,2]
[383943694,1757188255724,-1024.43,0.0001726,2]
[383943695,1757188255733,-776.49,0.0001726,2]
[383943696,1757188255743,-1478.83102954,0.00017304,2]
[383943697,1757188255752,-2500.0,0.00017419,2]
[383943698,1757188255763,-765.08905972,0.00017421,2]
[383943699,1757188255772,-750.42865584,0.00017421,2]
[383943700,1757188255782,-2500.0,0.00017434,2]
[383943701,1757188255792,-2500.0,0.00017434,2]
[383943702,1757188255801,-170.83928576,0.00017434,2]
[383943703,1757188255811,-460.0,0.00017444,2]
[383943704,1757188255820,-1001.65404191,0.00017521,2]
[383943705,1757188255829,-815.58967545,0.00017521,2]
[383943706,1757188255838,-1000.0,0.00017521,2]
[383943707,1757188255849,-1000.0,0.00017521,2]
[383943708,1757188255858,-165.52023138,0.00017534,2]
[383943709,1757188255868,-480.0,0.00017534,2]
[383943710,1757188255877,-751.25,0.00017534,2]
[383943711,1757188255886,-480.0,0.00017534,2]
[383943712,1757188255895,-480.0,0.00017534,2]
[383943713,1757188255905,-505.83,0.00017534,2]
[383943714,1757188255915,-556.38,0.00017534,2]
[383943715,1757188255924,-566.54,0.00017534,2]
[383943716,1757188255935,-481.35,0.00017534,2]
[383943717,1757188255945,-480.0,0.00017534,2]
[383943718,1757188255954,-529.67,0.00017534,2]
[383943719,1757188255963,-509.94,0.00017534,2]
[383943720,1757188255973,-480.0,0.00017534,2]
[383943721,1757188255983,-480.0,0.00017534,2]
[383943722,1757188255993,-705.55,0.00017534,2]
[383943723,1757188256002,-480.0,0.00017534,2]
[383943724,1757188256012,-3041.38,0.00017534,2]
[383943725,1757188256022,-480.0,0.00017534,2]
[383943726,1757188256032,-7226.88,0.00017534,2]
[383943727,1757188256042,-553.89,0.00017534,2]
[383943728,1757188256052,-480.0,0.00017534,2]
[383943729,1757188256062,-594.3,0.00017534,2]
[383943730,1757188256072,-556.91,0.00017534,2]
[383943731,1757188256081,-480.0,0.00017534,2]
[383943732,1757188256091,-480.0,0.00017534,2]
[383943733,1757188256101,-602.49,0.00017534,2]
[383943734,1757188256110,-480.0,0.00017534,2]
[383943735,1757188256122,-740.07,0.00017534,2]
[383943736,1757188256132,-1229.74,0.00017534,2]
[383943737,1757188256142,-1289.77,0.00017534,2]
[383943738,1757188256154,-2872.85,0.00017534,2]
[383943739,1757188256165,-597.95,0.00017534,2]
[383943740,1757188256175,-1596.78,0.00017534,2]
[383943741,1757188256186,-5759.89,0.00017534,2]
[383943742,1757188256197,-2769.71,0.00017534,2]
[383943743,1757188256207,-2038.35,0.00017534,2]
[383943744,1757188256218,-480.0,0.00017534,2]
[383943745,1757188256229,-1191.28,0.00017534,2]
[383943746,1757188256239,-1777.18,0.00017534,2]
[383943747,1757188256249,-568.44,0.00017534,2]
[383943748,1757188256259,-806.04,0.00017534,2]
[383943749,1757188256269,-975.38,0.00017534,2]
[383943750,1757188256279,-480.0,0.00017534,2]
[383943751,1757188256289,-480.0,0.00017534,2]
[383943752,1757188256299,-480.0,0.00017534,2]
[383943753,1757188256308,-1149.06,0.00017534,2]
[383943754,1757188256318,-480.0,0.00017534,2]
[383943755,1757188256327,-265.95829566,0.00017534,2]
[383943756,1757188256337,-539.15,0.00017534,2]
[383943757,1757188256347,-480.0,0.00017534,2]
[383943758,1757188256357,-480.0,0.00017534,2]
[383943759,1757188256367,-595.52,0.00017534,2]
[383943760,1757188256378,-1423.76,0.00017534,2]
[383943761,1757188256517,-1509.09,0.00017534,2]
[383943762,1757188256527,-1413.15,0.00017534,2]
[383943763,1757188256537,-480.0,0.00017534,2]
[383943764,1757188256546,-1542.88,0.00017534,2]
[383943765,1757188256556,-480.0,0.00017534,2]
[383943766,1757188256566,-1635.19,0.00017534,2]
[383943767,1757188256575,-480.0,0.00017534,2]
[383943768,1757188256585,-514.21,0.00017534,2]
[383943769,1757188256594,-1024.43,0.00017534,2]
[383943770,1757188256603,-776.49,0.00017534,2]
[383943771,1757188256616,-1000.0,0.00017534,2]
[383943772,1757188256626,-2500.0,0.0001756,2]
[383943773,1757188256635,-2099.86183959,0.000176,2]
[383943774,1757188256645,-2000.0,0.000177,2]
[383943775,1757188256655,-10459.5506604,0.00017708,2]
[383943776,1757188256664,-153.0,0.00017726,2]
[383943777,1757188256673,-623.01600853,0.00017808,2]
[383943778,1757188256683,-751.25,0.00017808,2]
[383943779,1757188256693,-255.65,0.00017808,2]
[383943780,1757188256703,-480.0,0.00017808,2]
[383943781,1757188256712,-505.83,0.00017808,2]
[383943782,1757188256723,-556.38,0.00017808,2]
[383943783,1757188256733,-566.54,0.00017808,2]
[383943784,1757188256743,-481.35,0.00017808,2]
[383943785,1757188256753,-480.0,0.00017808,2]
[383943786,1757188256762,-529.67,0.00017808,2]
[383943787,1757188256771,-509.94,0.00017808,2]
[383943788,1757188256781,-480.0,0.00017808,2]
[383943789,1757188256790,-480.0,0.00017808,2]
[383943790,1757188256799,-705.55,0.00017808,2]
[383943791,1757188256809,-480.0,0.00017808,2]
[383943792,1757188256818,-3041.38,0.00017808,2]
[383943793,1757188256828,-480.0,0.00017808,2]
[383943794,1757188256837,-7226.88,0.00017808,2]
[383943795,1757188256848,-553.89,0.00017808,2]
[383943796,1757188256858,-480.0,0.00017808,2]
[383943797,1757188256867,-594.3,0.00017808,2]
[383943798,1757188256877,-556.91,0.00017808,2]
[383943799,1757188256887,-227.13477577,0.00017808,2]
[383943800,1757188256896,-480.0,0.00017808,2]
[383943801,1757188256905,-602.49,0.00017808,2]
[383943802,1757188256915,-480.0,0.00017808,2]
[383943803,1757188256924,-740.07,0.00017808,2]
[383943804,1757188256933,-1229.74,0.00017808,2]
[383943805,1757188256943,-1289.77,0.00017808,2]
[383943806,1757188256953,-2872.85,0.00017808,2]
[383943807,1757188256962,-597.95,0.00017808,2]
[383943808,1757188256972,-1596.78,0.00017808,2]
[383943809,1757188256981,-5759.89,0.00017808,2]
[383943810,1757188256990,-2769.71,0.00017808,2]
[383943811,1757188257000,-2038.35,0.00017808,2]
[383943812,1757188257010,-480.0,0.00017808,2]
[383943813,1757188257020,-1191.28,0.00017808,2]
[383943814,1757188257030,-1777.18,0.00017808,2]
[383943815,1757188257040,-568.44,0.00017808,2]
[383943816,1757188257051,-806.04,0.00017808,2]
[383943817,1757188257061,-975.38,0.00017808,2]
[383943818,1757188257071,-480.0,0.00017808,2]
[383943819,1757188257086,-480.0,0.00017808,2]
[383943820,1757188257107,-480.0,0.00017808,2]
[383943821,1757188257117,-1149.06,0.00017808,2]
[383943822,1757188257126,-480.0,0.00017808,2]
[383943823,1757188257136,-539.15,0.00017808,2]
[383943824,1757188257148,-480.0,0.00017808,2]
[383943825,1757188257159,-480.0,0.00017808,2]
[383943826,1757188257168,-595.52,0.00017808,2]
[383943827,1757188257177,-1423.76,0.00017808,2]
[383943828,1757188257187,-1509.09,0.00017808,2]
[383943829,1757188257205,-1413.15,0.00017808,2]
[383943830,1757188257215,-480.0,0.00017808,2]
[383943831,1757188257225,-1542.88,0.00017808,2]
[383943832,1757188257235,-480.0,0.00017808,2]
[383943833,1757188257245,-1635.19,0.00017808,2]
[383943834,1757188257255,-480.0,0.00017808,2]
[383943835,1757188257265,-514.21,0.00017808,2]
[383943836,1757188257275,-1024.43,0.00017808,2]
[383943837,1757188257285,-776.49,0.00017808,2]
[383943838,1757188257295,-583.5999924,0.00017808,2]
[383943839,1757188257304,-295.3355136,0.00017808,2]
[383943840,1757188257314,-308.6521045,0.00017808,2]
[383943841,1757188257324,-161.5667533,0.00017808,2]
[383943842,1757188257335,-161.5667533,0.00017808,2]